[Event "Titled Tuesday Blitz August 22 Early 2023"]
[White "Tregubov, Pavel V."]
[Black "Volovich, Vasily"]
[WhiteFideId "4115341"]
[BlackFideId "34169676"]
[WhiteElo "2655"]
[BlackElo "2697"]
[Result "0-1"]
[Round "7"]
[TimeControl "180+1"]
[Date "2023.08.22"]
[WhiteClock "0:00:08"]
[BlackClock "0:00:27"]
[Board "56"]

1. e4 {[%clk 0:03:00]}  e6 {[%clk 0:02:51]} 2. d4 {[%clk 0:03:00]}  d5 {[%clk 0:02:51]} 3. e5 {[%clk 0:02:58]}  c5 {[%clk 0:02:51]} 4. c3 {[%clk 0:02:58]}  Nc6 {[%clk 0:02:50]} 5. Nf3 {[%clk 0:02:59]}  Bd7 {[%clk 0:02:50]} 6. Be2 {[%clk 0:02:59]}  f6 {[%clk 0:02:51]} 7. O-O {[%clk 0:02:58]}  fxe5 {[%clk 0:02:51]} 8. dxe5 {[%clk 0:02:57]}  Qc7 {[%clk 0:02:51]} 9. Re1 {[%clk 0:02:57]}  O-O-O {[%clk 0:02:50]} 10. Bf1 {[%clk 0:02:57]}  h6 {[%clk 0:02:48]} 11. a4 {[%clk 0:02:56]}  g5 {[%clk 0:02:45]} 12. Na3 {[%clk 0:02:57]}  a6 {[%clk 0:02:44]} 13. Nc2 {[%clk 0:02:43]}  Bg7 {[%clk 0:02:36]} 14. b4 {[%clk 0:02:39]}  Nxe5 {[%clk 0:02:32]} 15. bxc5 {[%clk 0:02:34]}  Nxf3+ {[%clk 0:02:19]} 16. Qxf3 {[%clk 0:02:33]}  Nf6 {[%clk 0:02:20]} 17. Nd4 {[%clk 0:02:26]}  Ne4 {[%clk 0:02:18]} 18. c6 {[%clk 0:02:05]}  bxc6 {[%clk 0:01:43]} 19. Bxa6+ {[%clk 0:02:02]}  Kb8 {[%clk 0:01:43]} 20. Rb1+ {[%clk 0:02:00]}  Ka8 {[%clk 0:01:43]} 21. Rxe4 {[%clk 0:01:52]}  dxe4 {[%clk 0:01:41]} 22. Qxe4 {[%clk 0:01:52]}  Rb8 {[%clk 0:01:34]} 23. Bb5 {[%clk 0:01:48]}  Rhc8 {[%clk 0:01:16]} 24. Be3 {[%clk 0:01:38]}  Qe5 {[%clk 0:01:10]} 25. Qf3 {[%clk 0:01:16]}  Qd5 {[%clk 0:01:04]} 26. Qf7 {[%clk 0:00:38]}  Bxd4 {[%clk 0:00:57]} 27. Bxd4 {[%clk 0:00:38]}  cxb5 {[%clk 0:00:56]} 28. axb5 {[%clk 0:00:38]}  Kb7 {[%clk 0:00:47]} 29. h4 {[%clk 0:00:32]}  gxh4 {[%clk 0:00:43]} 30. Be3 {[%clk 0:00:20]}  Rg8 {[%clk 0:00:41]} 31. f3 {[%clk 0:00:19]}  Rbf8 {[%clk 0:00:39]} 32. Qe7 {[%clk 0:00:18]}  Rxg2+ {[%clk 0:00:28]} 33. Kxg2 {[%clk 0:00:14]}  Qxf3+ {[%clk 0:00:28]} 34. Kh2 {[%clk 0:00:11]}  Qg3+ {[%clk 0:00:27]} 35. Kh1 {[%clk 0:00:08]}  Qh3+ {[%clk 0:00:27]} 0-1


[Site "https://www.chess.com"]

[Event "Titled Tuesday Blitz August 22 Early 2023"]
[White "Mazurkiewicz, Michal"]
[Black "Dehtiarov, Roman"]
[WhiteFideId "1124943"]
[BlackFideId "14186640"]
[WhiteElo "2515"]
[BlackElo "2695"]
[Result "0-1"]
[Round "7"]
[TimeControl "180+1"]
[Date "2023.08.22"]
[WhiteClock "0:00:00"]
[BlackClock "0:00:03"]
[Board "57"]

1. e4 {[%clk 0:03:00]}  e5 {[%clk 0:02:59]} 2. Nf3 {[%clk 0:03:00]}  Nc6 {[%clk 0:03:00]} 3. Bb5 {[%clk 0:03:01]}  a6 {[%clk 0:03:01]} 4. Bxc6 {[%clk 0:03:02]}  dxc6 {[%clk 0:03:02]} 5. O-O {[%clk 0:03:03]}  Bg4 {[%clk 0:03:01]} 6. h3 {[%clk 0:03:03]}  h5 {[%clk 0:03:02]} 7. d3 {[%clk 0:03:03]}  Qf6 {[%clk 0:03:02]} 8. Nbd2 {[%clk 0:03:03]}  Ne7 {[%clk 0:02:59]} 9. Re1 {[%clk 0:03:03]}  Ng6 {[%clk 0:02:56]} 10. d4 {[%clk 0:03:03]}  Nf4 {[%clk 0:02:32]} 11. dxe5 {[%clk 0:02:53]}  Qg6 {[%clk 0:02:31]} 12. Nh4 {[%clk 0:02:42]}  Qg5 {[%clk 0:02:03]} 13. Ndf3 {[%clk 0:02:36]}  Bxf3 {[%clk 0:01:43]} 14. Qxf3 {[%clk 0:02:23]}  Qxh4 {[%clk 0:01:40]} 15. Bxf4 {[%clk 0:02:20]}  O-O-O {[%clk 0:01:36]} 16. Qe3 {[%clk 0:02:20]}  Be7 {[%clk 0:01:16]} 17. Bg3 {[%clk 0:01:53]}  Qg5 {[%clk 0:01:14]} 18. Qa7 {[%clk 0:01:53]}  h4 {[%clk 0:00:59]} 19. Red1 {[%clk 0:01:38]}  Rd2 {[%clk 0:00:25]} 20. f4 {[%clk 0:00:48]}  Bc5+ {[%clk 0:00:08]} 21. Qxc5 {[%clk 0:00:47]}  Rxg2+ {[%clk 0:00:08]} 22. Kxg2 {[%clk 0:00:44]}  Qxg3+ {[%clk 0:00:09]} 23. Kf1 {[%clk 0:00:43]}  Qxh3+ {[%clk 0:00:08]} 24. Ke2 {[%clk 0:00:42]}  Qg4+ {[%clk 0:00:07]} 25. Ke1 {[%clk 0:00:26]}  Qxf4 {[%clk 0:00:06]} 26. Qf2 {[%clk 0:00:04]}  Qxe4+ {[%clk 0:00:06]} 27. Qe2 {[%clk 0:00:04]}  Qb4+ {[%clk 0:00:05]} 28. c3 {[%clk 0:00:04]}  Qf4 {[%clk 0:00:04]} 29. Qf2 {[%clk 0:00:04]}  Qxe5+ {[%clk 0:00:05]} 30. Qe2 {[%clk 0:00:04]}  Qf4 {[%clk 0:00:04]} 31. Rd3 {[%clk 0:00:04]}  h3 {[%clk 0:00:04]} 32. Qf3 {[%clk 0:00:02]}  Qe5+ {[%clk 0:00:02]} 33. Kf1 {[%clk 0:00:02]}  h2 {[%clk 0:00:02]} 34. Qh1 {[%clk 0:00:02]}  Qf5+ {[%clk 0:00:02]} 35. Rf3 {[%clk 0:00:02]}  Qxf3+ {[%clk 0:00:03]} 36. Qxf3 {[%clk 0:00:00]}  h1=Q+ {[%clk 0:00:03]} 0-1


[Site "https://www.chess.com"]

[Event "Titled Tuesday Blitz August 22 Early 2023"]
[White "Kavutskiy, Konstantin"]
[Black "Koutlas, Nikolaos"]
[WhiteFideId "2026384"]
[BlackFideId "25827138"]
[WhiteElo "2690"]
[BlackElo "2523"]
[Result "0-1"]
[Round "7"]
[TimeControl "180+1"]
[Date "2023.08.22"]
[WhiteClock "0:00:13"]
[BlackClock "0:00:56"]
[Board "58"]

1. e4 {[%clk 0:03:00]}  e6 {[%clk 0:02:55]} 2. d4 {[%clk 0:02:59]}  d5 {[%clk 0:02:56]} 3. Nd2 {[%clk 0:02:58]}  c5 {[%clk 0:02:54]} 4. Ngf3 {[%clk 0:02:56]}  Nc6 {[%clk 0:02:54]} 5. exd5 {[%clk 0:02:55]}  exd5 {[%clk 0:02:54]} 6. Bb5 {[%clk 0:02:55]}  Nf6 {[%clk 0:02:54]} 7. O-O {[%clk 0:02:54]}  Be7 {[%clk 0:02:54]} 8. dxc5 {[%clk 0:02:54]}  Bxc5 {[%clk 0:02:54]} 9. Nb3 {[%clk 0:02:54]}  Bb6 {[%clk 0:02:54]} 10. Re1+ {[%clk 0:02:49]}  Be6 {[%clk 0:02:54]} 11. Nbd4 {[%clk 0:02:47]}  O-O {[%clk 0:02:53]} 12. c3 {[%clk 0:02:35]}  Ne4 {[%clk 0:02:46]} 13. Be3 {[%clk 0:02:29]}  Bd7 {[%clk 0:02:39]} 14. Nc2 {[%clk 0:02:20]}  Bg4 {[%clk 0:02:34]} 15. h3 {[%clk 0:02:14]}  Bh5 {[%clk 0:02:32]} 16. Be2 {[%clk 0:01:58]}  Re8 {[%clk 0:02:22]} 17. Nfd4 {[%clk 0:01:43]}  Bxe2 {[%clk 0:02:19]} 18. Rxe2 {[%clk 0:01:41]}  Rc8 {[%clk 0:02:17]} 19. Nf5 {[%clk 0:01:36]}  Re5 {[%clk 0:02:02]} 20. Bxb6 {[%clk 0:01:20]}  Qxb6 {[%clk 0:02:00]} 21. Ncd4 {[%clk 0:01:21]}  Nxd4 {[%clk 0:01:56]} 22. Nxd4 {[%clk 0:01:21]}  Rce8 {[%clk 0:01:53]} 23. Qb3 {[%clk 0:01:09]}  Qc7 {[%clk 0:01:45]} 24. Rd1 {[%clk 0:01:04]}  a6 {[%clk 0:01:39]} 25. Nf3 {[%clk 0:01:01]}  R5e7 {[%clk 0:01:32]} 26. Qxd5 {[%clk 0:00:54]}  g6 {[%clk 0:01:27]} 27. Ng5 {[%clk 0:00:38]}  Nxg5 {[%clk 0:01:24]} 28. Rxe7 {[%clk 0:00:37]}  Qxe7 {[%clk 0:01:24]} 29. h4 {[%clk 0:00:27]}  Ne6 {[%clk 0:01:13]} 30. Re1 {[%clk 0:00:22]}  Rd8 {[%clk 0:01:05]} 31. Qe5 {[%clk 0:00:22]}  Qxh4 {[%clk 0:01:02]} 32. a3 {[%clk 0:00:18]}  Rd2 {[%clk 0:00:59]} 33. Rf1 {[%clk 0:00:14]}  Rxb2 {[%clk 0:00:57]} 34. Qb8+ {[%clk 0:00:13]}  Kg7 {[%clk 0:00:56]} 0-1


[Site "https://www.chess.com"]

[Event "Titled Tuesday Blitz August 22 Early 2023"]
[White "Egor_Koshulyan"]
[Black "Hirneise, Jens"]
[BlackFideId "24614734"]
[WhiteElo "2683"]
[BlackElo "2491"]
[Result "1-0"]
[Round "7"]
[TimeControl "180+1"]
[Date "2023.08.22"]
[WhiteClock "0:00:13"]
[BlackClock "0:00:01"]
[Board "60"]

1. e4 {[%clk 0:03:00]}  c6 {[%clk 0:02:57]} 2. d4 {[%clk 0:02:59]}  d5 {[%clk 0:02:58]} 3. e5 {[%clk 0:03:00]}  Bf5 {[%clk 0:02:57]} 4. Nf3 {[%clk 0:02:59]}  e6 {[%clk 0:02:57]} 5. Be2 {[%clk 0:02:59]}  Nd7 {[%clk 0:02:56]} 6. O-O {[%clk 0:02:58]}  Bg6 {[%clk 0:02:55]} 7. a4 {[%clk 0:02:55]}  Ne7 {[%clk 0:02:50]} 8. a5 {[%clk 0:02:44]}  c5 {[%clk 0:02:47]} 9. c4 {[%clk 0:02:43]}  cxd4 {[%clk 0:02:42]} 10. Qxd4 {[%clk 0:02:41]}  Nc6 {[%clk 0:02:41]} 11. Qf4 {[%clk 0:02:41]}  d4 {[%clk 0:02:33]} 12. Nxd4 {[%clk 0:02:38]}  Ndxe5 {[%clk 0:02:30]} 13. Nxc6 {[%clk 0:02:25]}  Nxc6 {[%clk 0:02:31]} 14. Rd1 {[%clk 0:02:25]}  Qb8 {[%clk 0:02:25]} 15. Bf3 {[%clk 0:02:21]}  Qxf4 {[%clk 0:02:14]} 16. Bxf4 {[%clk 0:02:19]}  a6 {[%clk 0:02:14]} 17. Nc3 {[%clk 0:02:12]}  Bb4 {[%clk 0:02:11]} 18. Ne4 {[%clk 0:02:09]}  e5 {[%clk 0:02:08]} 19. Bg3 {[%clk 0:02:08]}  Ke7 {[%clk 0:02:03]} 20. Nc3 {[%clk 0:01:54]}  Bxc3 {[%clk 0:02:01]} 21. bxc3 {[%clk 0:01:55]}  Rhd8 {[%clk 0:01:54]} 22. Bxc6 {[%clk 0:01:49]}  bxc6 {[%clk 0:01:53]} 23. Bxe5 {[%clk 0:01:50]}  c5 {[%clk 0:01:47]} 24. Rd5 {[%clk 0:01:47]}  Rxd5 {[%clk 0:01:41]} 25. cxd5 {[%clk 0:01:47]}  f6 {[%clk 0:01:42]} 26. Bf4 {[%clk 0:01:41]}  Kd7 {[%clk 0:01:37]} 27. f3 {[%clk 0:01:34]}  Re8 {[%clk 0:01:32]} 28. Ra2 {[%clk 0:01:31]}  Re1+ {[%clk 0:01:28]} 29. Kf2 {[%clk 0:01:31]}  Rb1 {[%clk 0:01:19]} 30. Re2 {[%clk 0:01:22]}  Bf7 {[%clk 0:01:09]} 31. d6 {[%clk 0:00:43]}  Be6 {[%clk 0:01:08]} 32. Bd2 {[%clk 0:00:37]}  Rb2 {[%clk 0:00:43]} 33. Bf4 {[%clk 0:00:35]}  Rb3 {[%clk 0:00:30]} 34. Re3 {[%clk 0:00:27]}  g5 {[%clk 0:00:27]} 35. Bg3 {[%clk 0:00:27]}  Rb2+ {[%clk 0:00:27]} 36. Kg1 {[%clk 0:00:26]}  Ra2 {[%clk 0:00:25]} 37. f4 {[%clk 0:00:25]}  gxf4 {[%clk 0:00:21]} 38. Bxf4 {[%clk 0:00:26]}  Rxa5 {[%clk 0:00:22]} 39. Rg3 {[%clk 0:00:26]}  Ra1+ {[%clk 0:00:19]} 40. Kf2 {[%clk 0:00:26]}  Ra2+ {[%clk 0:00:20]} 41. Ke3 {[%clk 0:00:27]}  Kc6 {[%clk 0:00:15]} 42. Rg7 {[%clk 0:00:25]}  Bd7 {[%clk 0:00:15]} 43. Rxh7 {[%clk 0:00:25]}  Rxg2 {[%clk 0:00:15]} 44. Rh8 {[%clk 0:00:23]}  a5 {[%clk 0:00:15]} 45. Ra8 {[%clk 0:00:23]}  Ra2 {[%clk 0:00:13]} 46. Ra7 {[%clk 0:00:23]}  Be6 {[%clk 0:00:08]} 47. Rc7+ {[%clk 0:00:18]}  Kb5 {[%clk 0:00:09]} 48. Re7 {[%clk 0:00:16]}  Bf5 {[%clk 0:00:08]} 49. d7 {[%clk 0:00:16]}  Bxd7 {[%clk 0:00:08]} 50. Rxd7 {[%clk 0:00:17]}  a4 {[%clk 0:00:09]} 51. Rc7 {[%clk 0:00:14]}  a3 {[%clk 0:00:08]} 52. Bd6 {[%clk 0:00:13]}  c4 {[%clk 0:00:06]} 53. Ra7 {[%clk 0:00:13]}  Rc2 {[%clk 0:00:04]} 54. Rxa3 {[%clk 0:00:13]}  Kc6 {[%clk 0:00:04]} 55. Bg3 {[%clk 0:00:13]}  Kd5 {[%clk 0:00:03]} 56. Ra5+ {[%clk 0:00:12]}  Ke6 {[%clk 0:00:01]} 57. Kd4 {[%clk 0:00:13]} 1-0


[Site "https://www.chess.com"]

[Event "Titled Tuesday Blitz August 22 Early 2023"]
[White "Djordjevic, Vuk"]
[Black "KrokerGuy"]
[WhiteFideId "902098"]
[WhiteElo "2683"]
[BlackElo "2491"]
[Result "1-0"]
[Round "7"]
[TimeControl "180+1"]
[Date "2023.08.22"]
[WhiteClock "0:00:06"]
[BlackClock "0:00:01"]
[Board "61"]

1. d4 {[%clk 0:03:00]}  d5 {[%clk 0:02:59]} 2. Bf4 {[%clk 0:03:00]}  Nf6 {[%clk 0:02:59]} 3. e3 {[%clk 0:03:00]}  c5 {[%clk 0:02:59]} 4. Nd2 {[%clk 0:02:59]}  cxd4 {[%clk 0:02:54]} 5. exd4 {[%clk 0:03:00]}  Nc6 {[%clk 0:02:54]} 6. c3 {[%clk 0:03:00]}  Bf5 {[%clk 0:02:53]} 7. Ngf3 {[%clk 0:02:59]}  e6 {[%clk 0:02:53]} 8. h3 {[%clk 0:02:46]}  h6 {[%clk 0:02:50]} 9. g4 {[%clk 0:02:46]}  Bg6 {[%clk 0:02:46]} 10. Ne5 {[%clk 0:02:44]}  Nxe5 {[%clk 0:02:20]} 11. Bxe5 {[%clk 0:02:39]}  Nd7 {[%clk 0:02:02]} 12. Bg3 {[%clk 0:02:36]}  Be7 {[%clk 0:01:59]} 13. h4 {[%clk 0:02:19]}  h5 {[%clk 0:01:45]} 14. g5 {[%clk 0:02:16]}  f6 {[%clk 0:01:43]} 15. gxf6 {[%clk 0:01:45]}  Bxf6 {[%clk 0:01:29]} 16. Bh3 {[%clk 0:01:32]}  Kf7 {[%clk 0:01:28]} 17. Qf3 {[%clk 0:01:18]}  Re8 {[%clk 0:01:03]} 18. O-O {[%clk 0:01:09]}  Qb6 {[%clk 0:00:47]} 19. Qf4 {[%clk 0:00:46]}  e5 {[%clk 0:00:35]} 20. dxe5 {[%clk 0:00:21]}  Nxe5 {[%clk 0:00:36]} 21. Nf3 {[%clk 0:00:21]}  Nd3 {[%clk 0:00:15]} 22. Qa4 {[%clk 0:00:20]}  Nxb2 {[%clk 0:00:10]} 23. Qd7+ {[%clk 0:00:15]}  Kg8 {[%clk 0:00:11]} 24. Qxd5+ {[%clk 0:00:14]}  Kh8 {[%clk 0:00:12]} 25. Ng5 {[%clk 0:00:12]}  Bxg5 {[%clk 0:00:08]} 26. Qxg5 {[%clk 0:00:11]}  Nc4 {[%clk 0:00:04]} 27. Rfe1 {[%clk 0:00:07]}  Qf6 {[%clk 0:00:03]} 28. Qxf6 {[%clk 0:00:04]}  gxf6 {[%clk 0:00:04]} 29. Bg2 {[%clk 0:00:04]}  Reb8 {[%clk 0:00:01]} 30. Bxb8 {[%clk 0:00:04]}  Rxb8 {[%clk 0:00:02]} 31. Re7 {[%clk 0:00:03]}  b6 {[%clk 0:00:02]} 32. Rxa7 {[%clk 0:00:03]}  Ne5 {[%clk 0:00:02]} 33. Ra8 {[%clk 0:00:04]}  Rxa8 {[%clk 0:00:02]} 34. Bxa8 {[%clk 0:00:05]}  Nd3 {[%clk 0:00:03]} 35. Bg2 {[%clk 0:00:05]}  Kg7 {[%clk 0:00:03]} 36. a4 {[%clk 0:00:06]}  Nc5 {[%clk 0:00:01]} 37. a5 {[%clk 0:00:06]}  Nb3 {[%clk 0:00:02]} 38. axb6 {[%clk 0:00:06]}  Nxa1 {[%clk 0:00:01]} 39. b7 {[%clk 0:00:06]} 1-0


[Site "https://www.chess.com"]

[Event "Titled Tuesday Blitz August 22 Early 2023"]
[White "Palchuk, Andrii"]
[Black "Rietze, Clemens, Dr."]
[WhiteFideId "14176688"]
[BlackFideId "24620351"]
[WhiteElo "2675"]
[BlackElo "2471"]
[Result "1-0"]
[Round "7"]
[TimeControl "180+1"]
[Date "2023.08.22"]
[WhiteClock "0:00:04"]
[BlackClock "0:00:23"]
[Board "62"]

1. d4 {[%clk 0:02:52]}  Nf6 {[%clk 0:03:00]} 2. c4 {[%clk 0:02:53]}  g6 {[%clk 0:03:00]} 3. g3 {[%clk 0:02:53]}  Bg7 {[%clk 0:03:00]} 4. Bg2 {[%clk 0:02:54]}  O-O {[%clk 0:03:00]} 5. Nf3 {[%clk 0:02:53]}  d6 {[%clk 0:03:00]} 6. O-O {[%clk 0:02:52]}  Nc6 {[%clk 0:02:59]} 7. Nc3 {[%clk 0:02:52]}  Bf5 {[%clk 0:02:58]} 8. Re1 {[%clk 0:02:46]}  a5 {[%clk 0:02:37]} 9. h3 {[%clk 0:02:43]}  e5 {[%clk 0:02:29]} 10. d5 {[%clk 0:02:36]}  Nb4 {[%clk 0:02:26]} 11. e4 {[%clk 0:02:36]}  Bd7 {[%clk 0:02:26]} 12. a3 {[%clk 0:02:36]}  Na6 {[%clk 0:02:25]} 13. b3 {[%clk 0:02:36]}  Nc5 {[%clk 0:02:22]} 14. Rb1 {[%clk 0:02:36]}  Ne8 {[%clk 0:02:11]} 15. b4 {[%clk 0:02:22]}  axb4 {[%clk 0:02:12]} 16. axb4 {[%clk 0:02:23]}  Na4 {[%clk 0:02:12]} 17. Nxa4 {[%clk 0:02:19]}  Rxa4 {[%clk 0:02:07]} 18. Bd2 {[%clk 0:01:48]}  h6 {[%clk 0:02:06]} 19. Ra1 {[%clk 0:01:45]}  Qa8 {[%clk 0:01:54]} 20. Rxa4 {[%clk 0:01:31]}  Bxa4 {[%clk 0:01:55]} 21. Qa1 {[%clk 0:01:26]}  Nf6 {[%clk 0:01:40]} 22. Qc3 {[%clk 0:01:25]}  Bd7 {[%clk 0:01:31]} 23. Ra1 {[%clk 0:01:21]}  Qb8 {[%clk 0:01:29]} 24. Ne1 {[%clk 0:01:17]}  c6 {[%clk 0:01:09]} 25. Be3 {[%clk 0:01:04]}  Rc8 {[%clk 0:00:57]} 26. Qb3 {[%clk 0:00:59]}  cxd5 {[%clk 0:00:39]} 27. exd5 {[%clk 0:00:56]}  Nh5 {[%clk 0:00:33]} 28. Bb6 {[%clk 0:00:37]}  Kh7 {[%clk 0:00:23]} 29. c5 {[%clk 0:00:33]}  Nf6 {[%clk 0:00:17]} 30. Nc2 {[%clk 0:00:27]}  Bb5 {[%clk 0:00:16]} 31. Ra5 {[%clk 0:00:25]}  Bd7 {[%clk 0:00:14]} 32. Ne3 {[%clk 0:00:25]}  Ne8 {[%clk 0:00:13]} 33. Nc4 {[%clk 0:00:23]}  Bf8 {[%clk 0:00:11]} 34. Qe3 {[%clk 0:00:16]}  f6 {[%clk 0:00:10]} 35. f4 {[%clk 0:00:16]}  dxc5 {[%clk 0:00:10]} 36. bxc5 {[%clk 0:00:16]}  exf4 {[%clk 0:00:10]} 37. gxf4 {[%clk 0:00:16]}  Ng7 {[%clk 0:00:10]} 38. d6 {[%clk 0:00:15]}  Re8 {[%clk 0:00:10]} 39. Qd2 {[%clk 0:00:13]}  Nf5 {[%clk 0:00:08]} 40. Bc7 {[%clk 0:00:12]}  Qc8 {[%clk 0:00:08]} 41. Nb6 {[%clk 0:00:12]}  Nh4 {[%clk 0:00:06]} 42. Nxc8 {[%clk 0:00:12]}  Bxc8 {[%clk 0:00:07]} 43. d7 {[%clk 0:00:12]}  Bxd7 {[%clk 0:00:07]} 44. Qxd7+ {[%clk 0:00:12]}  Re7 {[%clk 0:00:08]} 45. Qxe7+ {[%clk 0:00:06]}  Bxe7 {[%clk 0:00:08]} 46. Bd6 {[%clk 0:00:06]}  Bd8 {[%clk 0:00:08]} 47. Ra8 {[%clk 0:00:06]}  Nf5 {[%clk 0:00:07]} 48. Rxd8 {[%clk 0:00:06]}  Kg7 {[%clk 0:00:08]} 49. Rd7+ {[%clk 0:00:07]}  Kg8 {[%clk 0:00:08]} 50. Bd5+ {[%clk 0:00:07]}  Kh8 {[%clk 0:00:08]} 51. Rxb7 {[%clk 0:00:05]}  Ne3 {[%clk 0:00:09]} 52. Be4 {[%clk 0:00:04]}  Nc4 {[%clk 0:00:08]} 53. Be7 {[%clk 0:00:04]}  Na5 {[%clk 0:00:08]} 54. Rc7 {[%clk 0:00:04]}  Kg7 {[%clk 0:00:09]} 55. Bd8+ {[%clk 0:00:04]}  Kf8 {[%clk 0:00:09]} 56. Bxg6 {[%clk 0:00:03]}  Nc4 {[%clk 0:00:10]} 57. Bxf6 {[%clk 0:00:03]}  Ne3 {[%clk 0:00:09]} 58. Rf7+ {[%clk 0:00:04]}  Ke8 {[%clk 0:00:09]} 59. Re7+ {[%clk 0:00:03]}  Kd8 {[%clk 0:00:10]} 60. Rxe3+ {[%clk 0:00:04]}  Kc7 {[%clk 0:00:11]} 61. Re7+ {[%clk 0:00:04]}  Kc6 {[%clk 0:00:11]} 62. Rh7 {[%clk 0:00:05]}  Kd5 {[%clk 0:00:12]} 63. Rxh6 {[%clk 0:00:06]}  Kxc5 {[%clk 0:00:13]} 64. Bg5 {[%clk 0:00:06]}  Kd4 {[%clk 0:00:14]} 65. Rh7 {[%clk 0:00:07]}  Ke3 {[%clk 0:00:15]} 66. Rf7 {[%clk 0:00:08]}  Kf3 {[%clk 0:00:16]} 67. h4 {[%clk 0:00:09]}  Ke3 {[%clk 0:00:16]} 68. h5 {[%clk 0:00:09]}  Kd4 {[%clk 0:00:17]} 69. h6 {[%clk 0:00:10]}  Ke3 {[%clk 0:00:18]} 70. h7 {[%clk 0:00:11]}  Kd4 {[%clk 0:00:19]} 71. h8=Q+ {[%clk 0:00:12]}  Ke3 {[%clk 0:00:20]} 72. Qe5+ {[%clk 0:00:12]}  Kd2 {[%clk 0:00:21]} 73. Rd7+ {[%clk 0:00:11]}  Kc1 {[%clk 0:00:20]} 74. Qc7+ {[%clk 0:00:12]}  Kb2 {[%clk 0:00:21]} 75. Rd8 {[%clk 0:00:11]}  Kb3 {[%clk 0:00:22]} 76. Rb8+ {[%clk 0:00:12]}  Ka3 {[%clk 0:00:23]} 77. Qa7# {[%clk 0:00:04]} 1-0


[Site "https://www.chess.com"]

[Event "Titled Tuesday Blitz August 22 Early 2023"]
[White "Rosh Jain"]
[Black "Skvortsov, Andrei"]
[WhiteFideId "25789465"]
[BlackFideId "24108600"]
[WhiteElo "2467"]
[BlackElo "2660"]
[Result "0-1"]
[Round "7"]
[TimeControl "180+1"]
[Date "2023.08.22"]
[WhiteClock "0:00:03"]
[BlackClock "0:00:23"]
[Board "64"]

1. e4 {[%clk 0:02:59]}  d5 {[%clk 0:02:59]} 2. exd5 {[%clk 0:02:57]}  Qxd5 {[%clk 0:03:00]} 3. Nc3 {[%clk 0:02:56]}  Qe5+ {[%clk 0:03:00]} 4. Be2 {[%clk 0:02:55]}  Bg4 {[%clk 0:03:00]} 5. d4 {[%clk 0:02:53]}  Bxe2 {[%clk 0:03:01]} 6. Ngxe2 {[%clk 0:02:53]}  Qa5 {[%clk 0:03:01]} 7. O-O {[%clk 0:02:52]}  Nf6 {[%clk 0:03:02]} 8. Bf4 {[%clk 0:02:50]}  Nc6 {[%clk 0:03:01]} 9. Bd2 {[%clk 0:02:20]}  Qh5 {[%clk 0:02:53]} 10. f3 {[%clk 0:02:05]}  O-O-O {[%clk 0:02:50]} 11. Qe1 {[%clk 0:01:54]}  Qg6 {[%clk 0:02:32]} 12. Bf4 {[%clk 0:01:35]}  e6 {[%clk 0:02:24]} 13. Bg3 {[%clk 0:01:27]}  a6 {[%clk 0:02:18]} 14. a4 {[%clk 0:01:26]}  Nb4 {[%clk 0:02:16]} 15. Rc1 {[%clk 0:01:18]}  Nxc2 {[%clk 0:02:10]} 16. Qd2 {[%clk 0:01:18]}  Nxd4 {[%clk 0:02:10]} 17. Nxd4 {[%clk 0:01:15]}  Bc5 {[%clk 0:02:11]} 18. Ne2 {[%clk 0:01:14]}  b6 {[%clk 0:01:54]} 19. b4 {[%clk 0:00:43]}  Bd6 {[%clk 0:01:49]} 20. Bxd6 {[%clk 0:00:42]}  Rxd6 {[%clk 0:01:48]} 21. Qf4 {[%clk 0:00:17]}  Rhd8 {[%clk 0:01:46]} 22. Nc6 {[%clk 0:00:17]}  Nd5 {[%clk 0:01:42]} 23. Qe5 {[%clk 0:00:11]}  R8d7 {[%clk 0:01:28]} 24. Ncd4 {[%clk 0:00:08]}  Kb7 {[%clk 0:01:26]} 25. b5 {[%clk 0:00:08]}  a5 {[%clk 0:01:24]} 26. Nc2 {[%clk 0:00:07]}  f6 {[%clk 0:01:21]} 27. Qg3 {[%clk 0:00:07]}  Qf7 {[%clk 0:01:20]} 28. Ncd4 {[%clk 0:00:07]}  Ne7 {[%clk 0:01:20]} 29. Nc6 {[%clk 0:00:06]}  Nxc6 {[%clk 0:01:18]} 30. bxc6+ {[%clk 0:00:06]}  Rxc6 {[%clk 0:01:19]} 31. Rxc6 {[%clk 0:00:06]}  Kxc6 {[%clk 0:01:20]} 32. f4 {[%clk 0:00:07]}  Kb7 {[%clk 0:01:16]} 33. Qf3+ {[%clk 0:00:07]}  Kb8 {[%clk 0:01:17]} 34. Rc1 {[%clk 0:00:07]}  Rd5 {[%clk 0:01:15]} 35. Nc3 {[%clk 0:00:07]}  Rc5 {[%clk 0:01:15]} 36. Rd1 {[%clk 0:00:07]}  Qe7 {[%clk 0:01:10]} 37. Nb5 {[%clk 0:00:07]}  e5 {[%clk 0:01:08]} 38. fxe5 {[%clk 0:00:06]}  Rxe5 {[%clk 0:01:08]} 39. Nd4 {[%clk 0:00:06]}  Qc5 {[%clk 0:01:00]} 40. h3 {[%clk 0:00:03]}  Rd5 {[%clk 0:00:59]} 41. Qe4 {[%clk 0:00:04]}  Rd6 {[%clk 0:00:57]} 42. Kh2 {[%clk 0:00:03]}  g6 {[%clk 0:00:56]} 43. Rd2 {[%clk 0:00:04]}  f5 {[%clk 0:00:41]} 44. Qe8+ {[%clk 0:00:04]}  Kb7 {[%clk 0:00:41]} 45. Qe3 {[%clk 0:00:04]}  Qd5 {[%clk 0:00:29]} 46. Nf3 {[%clk 0:00:03]}  Qc6 {[%clk 0:00:27]} 47. Rxd6 {[%clk 0:00:03]}  Qxd6+ {[%clk 0:00:28]} 48. Kh1 {[%clk 0:00:03]}  Qd1+ {[%clk 0:00:27]} 49. Kh2 {[%clk 0:00:04]}  Qxa4 {[%clk 0:00:28]} 50. Ne5 {[%clk 0:00:03]}  Qe4 {[%clk 0:00:26]} 51. Qc3 {[%clk 0:00:03]}  a4 {[%clk 0:00:23]} 52. Nd3 {[%clk 0:00:03]}  Qc6 {[%clk 0:00:20]} 53. Qb4 {[%clk 0:00:03]}  Qd6+ {[%clk 0:00:18]} 54. Qxd6 {[%clk 0:00:03]}  cxd6 {[%clk 0:00:19]} 55. Kg3 {[%clk 0:00:04]}  Kc6 {[%clk 0:00:19]} 56. Kf3 {[%clk 0:00:03]}  Kd5 {[%clk 0:00:20]} 57. Ke2 {[%clk 0:00:03]}  Kc4 {[%clk 0:00:20]} 58. Kd2 {[%clk 0:00:04]}  b5 {[%clk 0:00:20]} 59. Kc2 {[%clk 0:00:04]}  Kd4 {[%clk 0:00:21]} 60. Kd2 {[%clk 0:00:03]}  a3 {[%clk 0:00:21]} 61. Nb4 {[%clk 0:00:03]}  Kc4 {[%clk 0:00:21]} 62. Na2 {[%clk 0:00:03]}  b4 {[%clk 0:00:21]} 63. Nc1 {[%clk 0:00:02]}  b3 {[%clk 0:00:22]} 64. Nd3 {[%clk 0:00:01]}  a2 {[%clk 0:00:21]} 65. Nb2+ {[%clk 0:00:02]}  Kd4 {[%clk 0:00:21]} 66. Na4 {[%clk 0:00:02]}  a1=Q {[%clk 0:00:21]} 67. Nc3 {[%clk 0:00:02]}  Qxc3+ {[%clk 0:00:21]} 68. Ke2 {[%clk 0:00:03]}  Qc2+ {[%clk 0:00:21]} 69. Ke1 {[%clk 0:00:03]}  b2 {[%clk 0:00:22]} 70. g4 {[%clk 0:00:03]}  b1=Q# {[%clk 0:00:23]} 0-1


[Site "https://www.chess.com"]